Cogmind - Beta 14 @@@ ROGUE MODE // 2024.11.06 @ 17:39:39 Player: Shimmyarah Result: Self-destructed Performance ------------- Evolutions (1) 500 Regions Visited (2) 400 Robots Destroyed (24) 120 Value Destroyed (396) 396 Prototype IDs (0) 0 Alien Tech Used (0) 0 Bonus (0) 0 TOTAL SCORE: 1416 Bonus ------- None Cogmind --------- Core Integrity 204/400 Matter 296/300 Energy 2/100 System Corruption 0% Temperature Cool (0) Movement Core (400) Ox7 Location -9/Materials Parts ------- > --- POWER (1) -------- (None) > --- PROPULSION (3) --- (None) > --- UTILITY (3) ------ Large Storage Unit ECM Suite > --- WEAPON (2) ------- Mining Claw > --- INVENTORY (15) --- Ion Engine Aluminum Leg Aluminum Leg Wheel Compact Wheel Small Storage Unit Peak State ------------ > --- POWER ------------ Ion Engine > --- PROPULSION ------- Wheel Compact Wheel Compact Wheel > --- UTILITY ---------- Small Storage Unit Large Storage Unit Seismic Detector > --- WEAPON ----------- Beam Cannon Assault Rifle > --- INVENTORY -------- Ion Engine Aluminum Leg Aluminum Leg Mining Laser Mining Claw [Rating: 9] Favorites ----------- Power Ion Engine Engine Ion Engine Propulsion Light Treads Treads Light Treads Wheel Compact Wheel Hover Unit Hover Unit Utility Small Storage Unit Device Seismic Detector Storage Small Storage Unit Weapon Assault Rifle Energy Cannon Beam Cannon Ballistic Gun Assault Rifle Special Weapon Mining Laser Slashing Weapon Mining Claw Build | -11 -10 -9 ------- Run | Yrd Mat Mat Slots Evolved 2 | . . 2 Power . | . . . Propulsion 1 | . . 1 Utility 1 | . . 1 Weapon . | . . . Parts Attached 25 | 6 10 9 Power 3 | 1 1 1 Engine 3 | 1 1 1 Core . | . . . Reactor . | . . . Propulsion 8 | 2 3 3 Treads 2 | 2 . . Leg . | . . . Wheel 5 | . 3 2 Hover 1 | . . 1 Flight . | . . . Utility 5 | 1 1 3 Device 3 | . 1 2 Storage 2 | 1 . 1 Processor . | . . . Hackware . | . . . Protection . | . . . Artifact . | . . . Weapon 9 | 2 5 2 Energy Gun . | . . . Energy Cannon 2 | . 2 . Ballistic Gun 3 | 2 1 . Ballistic Cannon . | . . . Launcher . | . . . Special Weapon 3 | . 2 1 Impact Weapon . | . . . Slashing Weapon 1 | . . 1 Piercing Weapon . | . . . Special Melee Weapon . | . . . Unidentified Prototypes . | . . . Parts Lost 10 | . . 10 Power 2 | . . 2 Propulsion 3 | . . 3 Utility 2 | . . 2 Weapon 3 | . . 3 Highest Loss Streak 5 | . . 5 To Critical Strikes . | . . . Average Slot Usage (%) 92 | . 98 84 Engine 12 | . 14 10 Treads 15 | . 26 . Wheel 13 | . 2 28 Device 13 | . 12 14 Storage 15 | . 14 16 Energy Cannon 9 | . 9 9 Ballistic Gun 9 | . 14 3 Special Weapon 2 | . 3 . Peak Build Rating 9 | 6 7 9 Average Rating 7 | 5 6 8 On Entrance 4 | . 6 7 Naked Turns . | . . . Heaviest Build 36 | 13 16 36 Greatest Support 42 | 40 40 42 Greatest Overweight (x) 10 | . . 10 Average Overweight (x) . | . . . Largest Inventory Capacity 15 | 8 8 15 Average Capacity 10 | 7 8 14 Most Carried 8 | 8 8 8 Average Carried 6 | 6 7 6 Final Capacity 15 | 8 8 15 Final Carried 8 | 8 5 6 Class Distribution -------------------- 100% | Mutant Dominant Class ---------------- Mutant | -10/Materials Mutant | -9/Materials Resources | -11 -10 -9 ----------- Run | Yrd Mat Mat Matter Collected 595 | 339 202 54 Remotely . | . . . Salvage Created 641 | 167 272 202 Parts 49 | 14 25 10 Haulers Intercepted . | . . . Recyclers Shooed 2 | 1 1 . Parts Field Recycled . | . . . Retrieved Matter . | . . . Parts Self-Destructed . | . . . Prevented . | . . . Kills | -11 -10 -9 ------- Run | Yrd Mat Mat Combat Hostiles Destroyed 13 | . 10 3 Guns 1 | . 1 . Cannons 12 | . 9 3 Classes Destroyed 6 | 3 3 . Worker 3 | 2 . 1 Tunneler 4 | 4 . . Recycler 1 | 1 . . Watcher 3 | . 1 2 Swarmer 6 | . 6 . Grunt 7 | . 4 3 Best Kill Streak 6 | 3 6 4 Combat Bots Only 6 | . 6 3 Max Kills in Single Turn 1 | 1 1 1 Gunslinging . | . . . Exploded . | . . . Melee . | . . . Uniques/NPCs Destroyed . | . . . Combat | -11 -10 -9 -------- Run | Yrd Mat Mat Hostile Shots Fired 132 | . 49 83 Missed 34 | . 16 18 Damage Taken 1069 | . 344 725 Core 258 | . 62 196 Absorbed by Shields 81 | . . 81 Core Remaining (%) 87 | 100 75 . Volleys Fired 81 | 20 43 18 Largest 2 | 2 2 2 Hottest 160 | 40 160 80 Shots Fired 140 | 39 77 24 Gun 79 | 39 34 6 Cannon 48 | . 30 18 Launcher . | . . . Special 13 | . 13 . Kinetic 79 | 39 34 6 Thermal 61 | . 43 18 Explosive . | . . . Electromagnetic . | . . . Robot Hit Streak 8 | 4 8 6 Robot Miss Streak 4 | 4 3 3 Penetration Max . | . . . Secondary Targets . | . . . Shots Hit Robots 57 | 19 21 17 Core Hits 30 | 10 12 8 Critical Kills . | . . . Critical Parts Destroyed . | . . . Critical Strikes . | . . . Melee Attacks 6 | . . 6 Impact . | . . . Slashing 6 | . . 6 Piercing . | . . . Sneak Attacks . | . . . Combat Hostiles . | . . . Follow-up Attacks . | . . . Damage Inflicted 905 | 203 362 340 Guns 346 | 203 114 29 Cannons 490 | . 248 242 Explosions . | . . . Melee 69 | . . 69 Ramming . | . . . Kinetic 346 | 203 114 29 Thermal 490 | . 248 242 Explosive . | . . . Electromagnetic . | . . . Impact . | . . . Slashing 69 | . . 69 Piercing . | . . . Highest Corruption . | . . . Average Corruption . | . . . Corruption Purged . | . . . Corruption Blocked . | . . . Overload Shots . | . . . Overflow Damage 7 | . . 7 Projectiles . | . . . Explosions . | . . . Melee 7 | . . 7 Knockbacks . | . . . Impact . | . . . Kinetic . | . . . Secondary . | . . . Self-Inflicted Damage . | . . . Shots . | . . . Rammed . | . . . Targets Rammed . | . . . Kicked . | . . . Crushed . | . . . Highest Temperature 258 | . 258 179 Average Temperature 90 | . 98 63 Received Heat Transfer 504 | . 102 402 Siege Activations . | . . . Robots Corrupted . | . . . Combat Hostiles . | . . . Parts Fried . | . . . Impact Corruptions . | . . . Robots Melted . | . . . Combat Hostiles . | . . . Parts Melted 1 | . . 1 Heat Transferred 1036 | . 518 518 Parts Sabotaged . | . . . Parts Stolen . | . . . Parts Stripped . | . . . Power Chain Reactions . | . . . Alert | -11 -10 -9 ------- Run | Yrd Mat Mat Peak Influence 204 | 35 204 181 Initial 70 | . 22 70 Average 67 | 16 57 107 Maximum Alert Level 1 | . 1 . Low Security (%) 97 | 100 95 100 Level 1 2 | . 4 . Level 2 . | . . . Level 3 . | . . . Level 4 . | . . . Level 5 . | . . . High Security . | . . . Max Security . | . . . Squads Dispatched 2 | . 2 . Investigation 1 | . 1 . Extermination . | . . . Reinforcement 1 | . 1 . Assault . | . . . Garrison . | . . . Intercept . | . . . Searches Triggered . | . . . Construction Impeded . | . . . Haulers Reinforced . | . . . Active Scanning Responses . | . . . Cargo Convoy Interrupts . | . . . Stealth | -11 -10 -9 --------- Run | Yrd Mat Mat Distress Signals 4 | . 4 . Communications Jammed . | . . . Distress Signals . | . . . Times Spotted 36 | . 19 17 Peak Tracking Total 5 | . 5 5 Tactical Retreats 4 | . 2 2 Traps | -11 -10 -9 ------- Run | Yrd Mat Mat Traps Triggered 1 | . 1 . Indirectly . | . . . Trap Hack Attempts . | . . . Triggered . | . . . Disarmed . | . . . Reprogrammed . | . . . Reused . | . . . Traps Extracted . | . . . Installed . | . . . Triggered . | . . . Machines | -11 -10 -9 ---------- Run | Yrd Mat Mat Machines Disabled . | . . . Max in Single Turn . | . . . Machines Repaired . | . . . Machines Dismantled . | . . . Machines Sabotaged . | . . . Overloaded Fab Kills . | . . . Hacking | -11 -10 -9 --------- Run | Yrd Mat Mat Machines Accessed 6 | . 3 3 Terminals 5 | . 3 2 Fabricators . | . . . Repair Stations . | . . . Recycling Units 1 | . . 1 Scanalyzers . | . . . Garrison Access . | . . . Total Hacks 13 | . 8 5 Successful 5 | . 2 3 Failed 8 | . 6 2 Catastrophic 2 | . 2 . Database Lockouts . | . . . Manual 13 | . 9 4 Terminals 12 | . 8 4 Fabricators . | . . . Repair Stations . | . . . Recycling Units 1 | . . 1 Scanalyzers . | . . . Garrison Access . | . . . Terminal Hacks 2 | . 1 1 Branch Access Points 1 | . . 1 Emergency Access Points 1 | . 1 . Fabricator Hacks . | . . . Repair Station Hacks . | . . . Recycling Unit Hacks . | . . . Scanalyzer . | . . . Garrison Access Hacks . | . . . Unauthorized Hacks 3 | . 1 2 Terminals 2 | . 1 1 Operators 2 | . 1 1 Fabricators . | . . . Repair Stations . | . . . Recycling Units 1 | . . 1 Monitor 1 | . . 1 Scanalyzers . | . . . Garrison Access . | . . . Data Cores Recovered . | . . . Used . | . . . Hacking Detections 3 | . 2 1 Full Trace Events 3 | . 2 1 Feedback Events . | . . . Feedback Blocked . | . . . Robot Schematics Acquired . | . . . Robots Built . | . . . Authchips . | . . . Time . | . . . Total Robot Build Rating . | . . . Part Schematics Acquired . | . . . Parts Built . | . . . Authchips . | . . . Time . | . . . Total Part Build Rating . | . . . Parts Repaired . | . . . Time . | . . . Parts Recycled . | . . . Recycled Matter . | . . . Retrieved Matter . | . . . Retrieved Components . | . . . Parts Scanalyzed . | . . . Part Schematics Acquired . | . . . Parts Damaged . | . . . Bothacking | -11 -10 -9 ------------ Run | Yrd Mat Mat Used RIF Installer . | . . . Robots Hacked . | . . . Non-combat . | . . . Combat . | . . . Robot Hacks Applied . | . . . Relay Couplers Released . | . . . Fabnet Peak Effective % . | . . . Robots Rewired . | . . . Allies Hacked . | . . . Hacks Repelled . | . . . Allies | -11 -10 -9 -------- Run | Yrd Mat Mat Total Allies . | . . . Largest Group . | . . . Highest-Rated Group . | . . . Highest-Rated Ally . | . . . Total Orders . | . . . Ally Attacks . | . . . Total Damage . | . . . Kills . | . . . Allies Corrupted . | . . . Allies Melted . | . . . Intel | -11 -10 -9 ------- Run | Yrd Mat Mat Robot Analysis Total . | . . . Derelict Logs Recovered . | . . . Drone Launches . | . . . Drone Recoveries . | . . . Exploration | -11 -10 -9 ------------- Run | Yrd Mat Mat Turns Passed 1338 | 246 626 466 Spaces Moved 775 | 111 305 359 Core 7 | 5 . 2 Treads 369 | 106 263 . Legs . | . . . Wheels 386 | . 42 344 Hover 13 | . . 13 Flight . | . . . Fastest Speed 50 | 50 90 90 Average Speed 131 | 155 150 107 Slowest Speed 550 | 160 160 550 Overloaded Moves . | . . . Propulsion Burnouts . | . . . Robots Hopped . | . . . Cave-ins Triggered . | . . . Exploration Rate (%) 18 | 8 31 17 Regions Visited 2 Branch Regions . Pre-discovered Areas . | . . . Known Exits Taken . | . . . Unknown Exits Taken 2 | 1 1 . Scrap Searched . | . . . Spaces Dug 13 | . 13 . Terrain Destroyed 13 | . 13 . Melee . | . . . Projectile 13 | . 13 . AOE . | . . . Terrain Rammed . | . . . Walls Destroyed . | . . . Machines Disabled . | . . . Actions | -11 -10 -9 --------- Run | Yrd Mat Mat Total 916 | 150 367 399 Wait . | . . . Move 773 | 110 304 359 Hop . | . . . Pick Up 25 | 14 4 7 Fast Attach . | . . . Attach 13 | 6 1 6 Detach . | . . . Swap 12 | . 9 3 Drop 6 | . 6 . Fire 81 | 20 43 18 Melee 6 | . . 6 Ram . | . . . Kick . | . . . Crush . | . . . Escape Stasis . | . . . Rewire . | . . . Trap . | . . . Miscellaneous . | . . . Route ------- -11/Scrapyard -10/Materials -9/Materials (discovered 2 exits: Min x2) History --------- Turn | Location | Event 4 | -11/Scrapyard | Discovered new exit (range 15) 247 | -11/Scrapyard | Entered Materials 305 | -10/Materials | Build established: Mutant 822 | -10/Materials | Discovered new exit (range 15) 873 | -10/Materials | Entered another Materials area 873 | -9/Materials | Evolved 2 slots: Propulsion x1, Utility x1 940 | -9/Materials | Identified exit to Mines 1057 | -9/Materials | Lost 3 parts (1p1u1w) 1339 | -9/Materials | Self-destructed Last Messages --------------- 01254_ R-06 Scavenger collects Lgt. Ion Engine. 01256_ Hover Unit destroyed. 01257_ K-01 Serf collects debris. 01259_ R-06 Scavenger collects Med. Matter Pod. 01262_ Beam Cannon destroyed. 01262_ R-06 Scavenger collects Wheel. 01321_ >> MONITOR: Recycling Unit M002 accepting Lgt. Ion Engine (92%). 01324_ Mining Laser destroyed. 01324_ >> MONITOR: Recycling Unit M002 accepting Lgt. Ion Engine (100%). 01325_ Wheel destroyed. 01327_ Com. Wheel destroyed. 01327_ >> MONITOR: Recycling Unit M002 accepting Med. Matter Pod (76%). 01329_ Shield Generator destroyed. 01329_ Ion Engine destroyed. 01330_ Destroyed Imp. Heat Sink. 01330_ >> MONITOR: Recycling Unit M002 accepting Wheel (100%). Map ----- +----------------------------------------------------+ | # #??# """ #????????????????????????????? | | # """ #??# #????????????????????????????? | | # """ #??#####+#####????????????????????????????? | | # """ #???# #?????????????????????????????? | | # #???# #?????????????????????????????? | | ########???# #?????????????????????????????? | | ???????????##### #???########################### | | ???????????????# #???# ^ | | ???????????????# #???# ^^ | | ???????????????# #???# ^% | | ???????????????# #???# ####################### | | ???????????????# #???# # """ #????????????? | | ??????????????## ##??# # """"" #????????????? | | ??????????????# #### # """"" #????????????? | | ??????????????# # """"" #????????????? | | ??????????????# + """ #????????????? | | ??????????????# # #????????????? | | ??????????????# ###+#### #????????????? | | ??????????????####### # #????????????? | | ????????????????????# g # #????????????? | | ????????????????????# """ ##########????????????? | | ????????????????????# """ #?????????????????????? | | ????????????????????# """g#?????????????????????? | | ????????????????????# #?????????????????????? | | ????????????????????#####g##?????????????????????? | | ????????????????????????#@#??????????????????????? | | ????????????????????????# #??????????????????????? | | ????????????????????????# #??????????????????????? | | ????????????????????????# #??????????????????????? | | ????????????????????????#g#??????????????????????? | | ?????????????????##+##### #######????????????????? | | ????????????#! / g #????????????????? | | ????????????# # #????????????????? | | ??????????????????# #????????????????? | | ??????????????????+ +????????????????? | | ??????????????????# ##+##+#### #????????????????? | | ??????????????????# ????? ?????#????????????????? | | ??????????????????# ??????"??????????????????????? | | ??????????????????#???????"??????????????????????? | | ?????????????????????????????????????????????????? | | ?????????????????????????????????????????????????? | | ?????????????????????????????????????????????????? | | ?????????????????????????????????????????????????? | | ?????????????????????????????????????????????????? | | ?????????????????????????????????????????????????? | | ?????????????????????????????????????????????????? | | ?????????????????????????????????????????????????? | | ?????????????????????o???????????????????????????? | | ?????????????????????????????????????????????????? | | ?????????????????????????????????????????????????? | +----------------------------------------------------+ Best States ------------- Heat Dissipation 28 Energy Generation 10 Energy Capacity 250 Matter Stores 300 Matter Capacity 300 Sight Range 16 Terrain Scan Density 10 ECM Strength 1 Evasion (%) 42 Recoil Reduction 2 Item Schematics ----------------- None Robot Schematics ------------------ None Fabricated ------------ Nothing Alien Tech Used ----------------- None Achievements -------------- True Hacker Challenges ------------ None Game ------ Seed SupersonicParticleWings Manual? 0 Play Time 00:20:50 Cumulative 12.7 hours Start 2024.11.06 @ 17:19:06 End 2024.11.06 @ 17:39:39 Sessions 1 Manual Loads 0 Difficulty Rogue Special Mode None Game No. 29 Rogue 29 Adventurer 0 Explorer 0 Win Type - Total 0 Types 0/0/0/0/0/0/0/0/0 Lore% 8 Gallery% 15 Achievement% 14 Wizard Run 0 Options --------- Layout 1 ASCII 0 Keyboard 0 Movement Arrows Keybinds 0 Fullscreen 1 Font 24/Smallcaps Map View 50x40 Zoom Use 20% Tactical HUD 1 Map Filters NONE Filters NONE Steam 1 RUN: 71b95866-30c5-4b74-9eac-482594ea5b0c